fUST/lending_fUST_20250115
["ID","MTS","AMOUNT","RATE_DAILY","PERIOD"]
[348925977,1736874643924,-500.0,0.00022739,3]
[348925979,1736874643933,-500.0,0.00022739,3]
[348925981,1736874643944,-500.0,0.00022739,3]
[348925984,1736874643954,-2545.56,0.00022739,3]
[348925987,1736874643963,-500.0,0.00022739,3]
[348925990,1736874643973,-1046.49,0.00022739,3]
[348925992,1736874643983,-2366.92,0.00022739,3]
[348925995,1736874643992,-723.39,0.00022739,3]
[348925997,1736874644002,-913.87,0.00022739,3]
[348926000,1736874644012,-353.3916328,0.0002274,2]
[348926003,1736874644022,-600.0,0.00022741,2]
[348926006,1736874644032,-11294.5531873,0.00022771,2]
[348926007,1736874644043,-150.0,0.000228,2]
[348926010,1736874644053,-266.55375172,0.00022876,3]
[348926012,1736874644062,-500.0,0.00022876,3]
[348926014,1736874644071,-500.0,0.00022876,2]
[348926016,1736874644082,-523.87,0.00022876,3]
[348926018,1736874644091,-1201.47,0.00022876,3]
[348926020,1736874644102,-500.0,0.00022876,3]
[348926022,1736874644112,-500.0,0.00022876,3]
[348926024,1736874644122,-3483.41,0.00022876,2]
[348926026,1736874644133,-921.74,0.00022876,3]
[348926028,1736874644143,-1055.57,0.00022876,3]
[348926030,1736874644152,-500.0,0.00022876,3]
[348926032,1736874644161,-8929.95,0.00022876,3]
[348926034,1736874644171,-500.0,0.00022876,3]
[348926036,1736874644181,-500.0,0.00022876,3]
[348926038,1736874644192,-699.92,0.00022876,3]
[348926040,1736874644201,-853.65,0.00022876,3]
[348926042,1736874644210,-758.5,0.00022876,3]
[348926044,1736874644220,-500.0,0.00022876,3]
[348926046,1736874644229,-500.0,0.00022876,3]
[348926048,1736874644239,-500.0,0.00022876,3]
[348926050,1736874644248,-2545.56,0.00022876,3]
[348926052,1736874644258,-500.0,0.00022876,3]
[348926054,1736874644268,-1046.49,0.00022876,3]
[348926056,1736874644277,-2366.92,0.00022876,3]
[348926058,1736874644286,-723.39,0.00022876,3]
[348926060,1736874644295,-913.87,0.00022876,3]
[348926062,1736874644306,-153.9204537,0.00022877,2]
[348926064,1736874644316,-428.416079,0.00022877,2]
[348926066,1736874644325,-458.8926588,0.00022877,2]
[348926068,1736874644335,-1018.37117836,0.00022978,2]
[348926070,1736874644344,-7438.69753278,0.00023,2]
[348926072,1736874644354,-7438.69753278,0.00023,3]
[348926074,1736874644363,-186.0,0.00023,2]
[348926076,1736874644373,-500.0,0.00023013,3]
[348926078,1736874644382,-500.0,0.00023013,2]
[348926080,1736874644391,-523.87,0.00023013,3]
[348926082,1736874644400,-1201.47,0.00023013,3]
[348926084,1736874644411,-500.0,0.00023013,3]
[348926086,1736874644421,-500.0,0.00023013,3]
[348926088,1736874644432,-3483.41,0.00023013,2]
[348926090,1736874644442,-921.74,0.00023013,3]
[348926092,1736874644451,-1055.57,0.00023013,3]
[348926094,1736874644461,-500.0,0.00023013,3]
[348926096,1736874644471,-6269.50584298,0.00023013,3]
[348926207,1736874646000,-500.0,0.00021917,3]
[348926209,1736874646012,-500.0,0.00021917,3]
[348926211,1736874646021,-500.0,0.00021917,3]
[348926213,1736874646031,-500.0,0.00021917,3]
[348926215,1736874646042,-500.0,0.00022054,3]
[348926217,1736874646051,-500.0,0.00022191,3]
[348926219,1736874646060,-500.0,0.00022328,3]
[348926221,1736874646070,-500.0,0.00022465,3]
[348926223,1736874646080,-500.0,0.00022602,3]
[348926225,1736874646090,-500.0,0.00022739,3]
[348926227,1736874646099,-353.3916328,0.0002274,2]
[348926228,1736874646108,-500.0,0.00022876,3]
[348926230,1736874646121,-2660.44415702,0.00023013,3]
[348926232,1736874646131,-230.77085161,0.00023013,3]
[348926234,1736874646141,-500.0,0.00023013,3]
[348926237,1736874646151,-699.92,0.00023013,3]
[348926239,1736874646161,-853.65,0.00023013,3]
[348926241,1736874646170,-758.5,0.00023013,3]
[348926244,1736874646179,-500.0,0.00023013,3]
[348926246,1736874646189,-500.0,0.00023013,3]
[348926248,1736874646200,-500.0,0.00023013,3]
[348926250,1736874646209,-2545.56,0.00023013,3]
[348926251,1736874646218,-500.0,0.00023013,3]
[348926254,1736874646227,-1046.49,0.00023013,3]
[348926256,1736874646236,-2366.92,0.00023013,3]
[348926258,1736874646245,-723.39,0.00023013,3]
[348926260,1736874646254,-913.87,0.00023013,3]
[348926262,1736874646263,-500.0,0.00023013,3]
[348926264,1736874646272,-11294.5531873,0.00023081,2]
[348926266,1736874646281,-298.7804968,0.0002314,2]
[348926268,1736874646290,-500.0,0.0002315,3]
[348926270,1736874646299,-500.0,0.0002315,2]
[348926272,1736874646308,-523.87,0.0002315,3]
[348926274,1736874646318,-1201.47,0.0002315,3]
[348926276,1736874646327,-500.0,0.0002315,3]
[348926278,1736874646337,-500.0,0.0002315,3]
[348926280,1736874646347,-3483.41,0.0002315,2]
[348926282,1736874646356,-921.74,0.0002315,3]
[348926284,1736874646365,-1055.57,0.0002315,3]
[348926285,1736874646375,-500.0,0.0002315,3]
[348926287,1736874646384,-8929.95,0.0002315,3]
[348926289,1736874646395,-500.0,0.0002315,3]
[348926292,1736874646406,-699.92,0.0002315,3]
[348926294,1736874646417,-853.65,0.0002315,3]
[348926296,1736874646427,-758.5,0.0002315,3]
[348926298,1736874646436,-500.0,0.0002315,3]
[348926300,1736874646446,-500.0,0.0002315,3]
[348926302,1736874646455,-500.0,0.0002315,3]
[348926304,1736874646464,-2545.56,0.0002315,3]
[348926306,1736874646474,-500.0,0.0002315,3]
[348926308,1736874646483,-1046.49,0.0002315,3]
[348926310,1736874646492,-2366.92,0.0002315,3]
[348926312,1736874646501,-723.39,0.0002315,3]
[348926313,1736874646510,-913.87,0.0002315,3]
[348926315,1736874646520,-500.0,0.0002315,3]
[348926317,1736874646529,-2000.0,0.000232,2]
[348926319,1736874646538,-153.0,0.0002324,2]
[348926321,1736874646547,-153.0,0.0002324,2]
[348926323,1736874646557,-153.0,0.0002324,2]
[348926325,1736874646567,-2500.0,0.00023287,3]
[348926327,1736874646575,-500.0,0.00023287,3]
[348926329,1736874646585,-500.0,0.00023287,2]
[348926331,1736874646594,-523.87,0.00023287,3]
[348926333,1736874646603,-1201.47,0.00023287,3]
[348926336,1736874646613,-500.0,0.00023287,3]
[348926338,1736874646623,-500.0,0.00023287,3]
[348926340,1736874646633,-3483.41,0.00023287,2]
[348926342,1736874646642,-921.74,0.00023287,3]
[348926343,1736874646651,-1055.57,0.00023287,3]
[348926345,1736874646661,-500.0,0.00023287,3]
[348926347,1736874646670,-8929.95,0.00023287,3]
[348926349,1736874646680,-500.0,0.00023287,3]
[348926351,1736874646689,-699.92,0.00023287,3]
[348926353,1736874646700,-853.65,0.00023287,3]
[348926355,1736874646711,-758.5,0.00023287,3]
[348926357,1736874646720,-500.0,0.00023287,3]
[348926359,1736874646730,-500.0,0.00023287,3]
[348926361,1736874646739,-500.0,0.00023287,3]
[348926363,1736874646748,-2545.56,0.00023287,3]
[348926365,1736874646758,-500.0,0.00023287,3]
[348926367,1736874646767,-1046.49,0.00023287,3]
[348926369,1736874646777,-2366.92,0.00023287,3]
[348926371,1736874646786,-723.39,0.00023287,3]
[348926373,1736874646795,-913.87,0.00023287,3]
[348926374,1736874646804,-230.94649034,0.000233,2]
[348926376,1736874646814,-11294.5531873,0.00023362,2]
[348926378,1736874646823,-18605.05149683,0.00023388,2]
[348926381,1736874646840,-183.74,0.00022054,3]
[348926383,1736874646849,-181.91302155,0.00023388,2]
[348926385,1736874646858,-475.53799729,0.00023424,3]
[348928422,1736874831842,1000.0,0.00025,120]
[348928426,1736875185393,199.192912,0.00013973,2]
[348928434,1736875634150,-648.3643599,0.00018378,2]
[348928435,1736875634172,-177.88536,0.00018896,2]
[348928436,1736875634194,-96.15153695,0.00018941,2]
[348928438,1736875651098,-153.84846305,0.00018941,2]
[348928439,1736875651121,-172.394556,0.00019178,2]
[348928440,1736875651143,-259.38759969,0.00019824,2]
[348928441,1736875651182,-187.45,0.00019919,2]
[348928442,1736875651205,-187.45,0.00019919,2]
[348928443,1736875651229,-67.30930328,0.00019924,2]
[348928445,1736875702481,1254.9644432,0.000125,2]
[348928447,1736875725498,842.70230775,0.00015,2]
[348928451,1736875745159,-1115.16668422,0.00016,2]
[348928452,1736875745180,-3389.55335351,0.00016,2]
[348928458,1736875751132,-300.0,0.00017599,2]
[348928459,1736875751152,-1652.91627678,0.000176,2]
[348928460,1736875772142,-318.53989069,0.0001881,2]
[348928461,1736875772166,-6948.15074597,0.00018923,2]
[348928526,1736875832269,-1918.35178501,0.000189,2]
[348928528,1736875832279,-300.0,0.00018922,2]
[348928531,1736875832289,-17951.84925403,0.00018923,2]
[348928533,1736875832299,-155.06487703,0.00019,2]
[348928535,1736875832309,-1688.843237,0.00019825,2]
[348928537,1736875832319,-301.80704096,0.00019826,2]
[348928539,1736875832329,-237.67393333,0.000199,2]
[348928541,1736875832338,-125.16644478,0.00019924,2]
[348928543,1736875832348,-300.833,0.00019924,2]
[348928545,1736875832358,-1178.54317091,0.00019926,2]
[348928547,1736875832367,-152.88,0.00019931,2]
[348928549,1736875832377,-500.0,0.00019931,7]
[348928551,1736875832386,-263.64496828,0.00019973,2]
[348928553,1736875832396,-187.59475215,0.00019973,2]
[348928555,1736875832405,-502.65607602,0.00019973,2]
[348928557,1736875832415,-500.0,0.00019973,2]
[348928559,1736875832424,-500.0,0.00019973,2]
[348928561,1736875832434,-3495.76472294,0.0001999,3]
[348928563,1736875832444,-1688.84323697,0.00020363,2]
[348928565,1736875832458,-199.192912,0.00020447,2]
[348928567,1736875832467,-314.4515498,0.00020521,2]
[348928569,1736875832477,-301.80704095,0.00020529,2]
[348928571,1736875832487,-420.0,0.00020627,2]
[348928573,1736875832499,-1977.38704795,0.00020801,2]
[348928576,1736875832509,-237.67393331,0.000209,2]
[348928578,1736875832520,-1688.84323697,0.00020901,2]
[348928580,1736875832533,-158.98327386,0.00021,2]
[348928582,1736875832543,-301.80704095,0.00021233,2]
[348928584,1736875832554,-500.0,0.00021282,2]
[348928586,1736875832564,-1688.84323697,0.00021439,2]
[348928588,1736875832575,-353.3916328,0.00021781,2]
[348928590,1736875832585,-352.8845472,0.00021781,2]
[348928592,1736875832594,-353.3916328,0.00021781,2]
[348928594,1736875832604,-353.3916328,0.00021781,2]
[348928596,1736875832614,-270.5054403,0.00021781,2]
[348928598,1736875832624,-5973.75117128,0.000218,2]
[348928600,1736875832633,-500.0,0.0002183,2]
[348928602,1736875832643,-237.67393331,0.000219,2]
[348928604,1736875832654,-555.54645579,0.00021916,2]
[348928606,1736875832664,-645.77223282,0.00021917,3]
[348928608,1736875832673,-500.0,0.00021917,3]
[348928610,1736875832683,-500.0,0.00021917,3]
[348928612,1736875832693,-500.0,0.00021917,3]
[348928614,1736875832703,-500.0,0.00021917,3]
[348928616,1736875832713,-574.70066843,0.00021917,3]
[348928618,1736875832722,-500.0,0.00021917,3]
[348928620,1736875832732,-486.94531863,0.00021917,3]
[348928622,1736875832742,-500.0,0.00021917,3]
[348928624,1736875832751,-500.0,0.00021917,3]
[348928626,1736875832762,-500.0,0.00021917,3]
[348928628,1736875832775,-500.0,0.00021917,3]
[348928631,1736875832785,-500.0,0.00021917,3]
[348928633,1736875832795,-353.59148735,0.00021917,3]
[348928635,1736875832804,-500.0,0.00021917,3]
[348928637,1736875832813,-500.0,0.00021917,3]
[348928639,1736875832823,-500.0,0.00021917,3]
[348928641,1736875832832,-500.0,0.00021917,3]
[348928643,1736875832842,-500.0,0.00021917,3]
[348928645,1736875832851,-500.0,0.00021917,3]
[348928647,1736875832861,-500.0,0.00021917,3]
[348928649,1736875832871,-500.0,0.00021917,3]
[348928651,1736875832880,-517.2306528,0.00021917,3]
[348928653,1736875832890,-500.0,0.00021917,3]
[348928655,1736875832900,-500.0,0.00021917,3]
[348928657,1736875832910,-500.0,0.00021917,3]
[348928659,1736875832919,-505.2428438,0.00021917,3]
[348928661,1736875832928,-500.0,0.00021917,3]
[348928663,1736875832937,-500.0,0.00021917,3]
[348928665,1736875832949,-500.0,0.00021917,3]
[348928667,1736875832958,-500.0,0.00021917,3]
[348928669,1736875832967,-510.19302079,0.00021917,3]
[348928671,1736875832977,-448.86982627,0.00021917,3]
[348928673,1736875832986,-500.0,0.00021917,3]
[348928675,1736875832995,-500.0,0.00021917,3]
[348928677,1736875833006,-500.0,0.00021917,3]
[348928679,1736875833015,-500.0,0.00021917,3]
[348928681,1736875833024,-500.0,0.00021917,3]
[348928683,1736875833034,-500.0,0.00021917,3]
[348928685,1736875833043,-500.0,0.00021917,3]
[348928687,1736875833053,-200.0,0.00021917,3]
[348928689,1736875833063,-500.0,0.00021917,3]
[348928691,1736875833073,-500.0,0.00021917,3]
[348928693,1736875833083,-500.0,0.00021917,3]
[348928695,1736875833093,-500.0,0.00021917,3]
[348928697,1736875833102,-500.0,0.00021917,3]
[348928699,1736875833111,-500.0,0.00021917,3]
[348928701,1736875833122,-500.0,0.00021917,3]
[348928703,1736875833132,-500.0,0.00021917,3]
[348928705,1736875833142,-500.0,0.00021917,3]
[348928707,1736875833152,-500.0,0.00021917,3]
[348928709,1736875833162,-367.84836339,0.00021917,3]
[348928711,1736875833171,-500.0,0.00021917,3]
[348928713,1736875833181,-500.0,0.00021917,3]
[348928715,1736875833190,-455.43224117,0.00021917,3]
[348928717,1736875833202,-500.0,0.00021917,3]
[348928719,1736875833211,-500.0,0.00021917,3]
[348928721,1736875833220,-500.0,0.00021917,3]
[348928723,1736875833230,-500.0,0.00021917,3]
[348928725,1736875833239,-500.0,0.00021917,3]
[348928727,1736875833249,-500.0,0.00021917,3]
[348928728,1736875833258,-500.0,0.00021917,3]
[348928730,1736875833267,-500.0,0.00021917,3]
[348928733,1736875833278,-500.0,0.00021917,3]
[348928735,1736875833288,-500.0,0.00021917,3]
[348928736,1736875833297,-500.0,0.00021917,3]
[348928738,1736875833307,-500.0,0.00021917,3]
[348928741,1736875833316,-500.0,0.00021917,3]
[348928743,1736875833328,-500.0,0.00021917,3]
[348928745,1736875833338,-500.0,0.00021917,3]
[348928748,1736875833359,-500.0,0.00021917,3]
[348928750,1736875833370,-507.48387988,0.00021917,3]
[348928752,1736875833380,-500.0,0.00021917,3]
[348928754,1736875833389,-500.0,0.00021917,3]
[348928756,1736875833399,-500.0,0.00021917,3]
[348928758,1736875833409,-500.0,0.00021917,3]
[348928760,1736875833418,-500.0,0.00021917,3]
[348928762,1736875833428,-500.0,0.00021917,3]
[348928764,1736875833438,-500.0,0.00021917,3]
[348928766,1736875833454,-500.0,0.00021917,3]
[348928769,1736875833464,-500.0,0.00021917,3]
[348928770,1736875833474,-500.0,0.00021917,3]
[348928772,1736875833484,-500.0,0.00021917,3]
[348928775,1736875833495,-500.0,0.00021917,3]
[348928776,1736875833505,-500.0,0.00021917,3]
[348928779,1736875833514,-500.62593579,0.00021917,3]
[348928781,1736875833527,-500.0,0.00021917,3]
[348928783,1736875833537,-500.0,0.00021917,3]
[348928785,1736875833546,-500.0,0.00021917,3]
[348928787,1736875833556,-500.0,0.00021917,3]
[348928789,1736875833566,-500.0,0.00021917,3]
[348928791,1736875833576,-500.0,0.00021917,3]
[348928793,1736875833586,-500.0,0.00021917,3]
[348928795,1736875833596,-572.13494338,0.00021917,3]
[348928797,1736875833607,-500.0,0.00021917,3]
[348928799,1736875833617,-500.0,0.00021917,3]
[348928801,1736875833627,-510.63418002,0.00021917,3]
[348928803,1736875833637,-503.1922648,0.00021917,3]
[348928805,1736875833648,-508.24600176,0.00021917,3]
[348928807,1736875833659,-500.0,0.00021917,3]
[348928809,1736875833669,-500.0,0.00021917,3]
[348928811,1736875833679,-500.0,0.00021917,3]
[348928814,1736875833690,-500.0,0.00021917,3]
[348928816,1736875833701,-500.0,0.00021917,3]
[348928818,1736875833711,-500.0,0.00021917,3]
[348928820,1736875833721,-500.0,0.00021917,3]
[348928821,1736875833731,-500.0,0.00021917,3]
[348928823,1736875833741,-500.0,0.00021917,3]
[348928826,1736875833752,-578.79836999,0.00021917,3]
[348928828,1736875833762,-500.0,0.00021917,3]
[348928830,1736875833775,-568.10331462,0.00021917,3]
[348928832,1736875833785,-500.0,0.00021917,3]
[348928834,1736875833795,-500.0,0.00021917,3]
[348928836,1736875833806,-500.0,0.00021917,3]
[348928838,1736875833816,-500.0,0.00021917,3]
[348928840,1736875833826,-500.0,0.00021917,3]
[348928842,1736875833836,-500.0,0.00021917,3]
[348928844,1736875833846,-500.0,0.00021917,3]
[348928846,1736875833856,-500.0,0.00021917,3]
[348928848,1736875833866,-500.0,0.00021917,3]
[348928850,1736875833876,-500.0,0.00021917,3]
[348928852,1736875833885,-466.30402998,0.00021917,3]
[348928854,1736875833895,-503.15770444,0.00021917,3]
[348928856,1736875833904,-500.0,0.00021917,3]
[348928859,1736875833914,-500.0,0.00021917,3]
[348928861,1736875833924,-500.0,0.00021917,3]
[348928863,1736875833934,-500.0,0.00021917,3]
[348928865,1736875833944,-500.0,0.00021917,3]
[348928867,1736875833953,-500.0,0.00021917,3]
[348928869,1736875833963,-500.0,0.00021917,3]
[348928871,1736875833973,-500.0,0.00021917,3]
[348928873,1736875833982,-500.0,0.00021917,3]
[348928875,1736875833992,-500.0,0.00021917,3]
[348928877,1736875834003,-500.0,0.00021917,3]
[348928879,1736875834013,-500.0,0.00021917,3]
[348928881,1736875834023,-500.0,0.00021917,3]
[348928883,1736875834033,-500.0,0.00021917,3]
[348928885,1736875834044,-500.0,0.00021917,3]
[348928887,1736875834053,-500.0,0.00021917,3]
[348928889,1736875834062,-500.0,0.00021917,3]
[348928891,1736875834072,-500.0,0.00021917,3]
[348928893,1736875834082,-500.0,0.00021917,3]
[348928895,1736875834092,-500.0,0.00021917,3]
[348928897,1736875834101,-500.0,0.00021917,3]
[348928899,1736875834111,-500.0,0.00021917,3]
[348928901,1736875834121,-500.0,0.00021917,3]
[348928903,1736875834131,-500.0,0.00021917,3]
[348928905,1736875834141,-500.0,0.00021917,3]
[348928907,1736875834152,-507.08302439,0.00021917,3]
[348928909,1736875834162,-500.0,0.00021917,3]
[348928911,1736875834172,-500.0,0.00021917,3]
[348928913,1736875834183,-405.76615182,0.00021917,3]
[348928916,1736875834193,-500.0,0.00021917,3]
[348928917,1736875834206,-500.0,0.00021917,3]
[348928919,1736875834216,-500.0,0.00021917,3]
[348928922,1736875834225,-500.0,0.00021917,3]
[348928923,1736875834235,-500.0,0.00021917,3]
[348928925,1736875834245,-500.0,0.00021917,3]
[348928928,1736875834255,-469.8528626,0.00021917,3]
[348928930,1736875834265,-500.0,0.00021917,3]
[348928932,1736875834274,-500.0,0.00021917,3]
[348928934,1736875834284,-500.0,0.00021917,3]
[348928936,1736875834294,-505.33312627,0.00021917,3]
[348928938,1736875834304,-500.0,0.00021917,3]
[348928940,1736875834313,-500.0,0.00021917,3]
[348928942,1736875834324,-387.2605334,0.00021917,3]
[348928944,1736875834334,-500.0,0.00021917,3]
[348928946,1736875834343,-500.0,0.00021917,3]
[348928948,1736875834353,-628.82468268,0.00021917,3]
[348928950,1736875834363,-500.0,0.00021917,3]
[348928951,1736875834373,-500.0,0.00021917,3]
[348928954,1736875834383,-500.0,0.00021917,3]
[348928956,1736875834393,-500.0,0.00021917,3]
[348928958,1736875834403,-500.0,0.00021917,3]
[348928960,1736875834413,-500.0,0.00021917,3]
[348928962,1736875834422,-500.0,0.00021917,3]
[348928964,1736875834432,-500.0,0.00021917,3]
[348928966,1736875834441,-500.0,0.00021917,3]
[348928968,1736875834456,-500.0,0.00021917,3]
[348928970,1736875834466,-500.0,0.00021917,3]
[348928972,1736875834475,-462.91205857,0.00021917,3]
[348928974,1736875834485,-500.0,0.00021917,3]
[348928976,1736875834495,-500.0,0.00021917,3]
[348928978,1736875834504,-500.0,0.00021917,3]
[348928980,1736875834515,-500.0,0.00021917,3]
[348928982,1736875834527,-500.0,0.00021917,3]
[348928984,1736875834537,-500.0,0.00021917,3]
[348928986,1736875834547,-500.0,0.00021917,3]
[348928988,1736875834556,-500.0,0.00021917,3]
[348928990,1736875834565,-500.0,0.00021917,3]
[348928992,1736875834575,-500.0,0.00021917,3]
[348928994,1736875834585,-500.0,0.00021917,3]
[348928996,1736875834595,-500.0,0.00021917,3]
[348928998,1736875834604,-438.89790896,0.00021917,3]
[348929000,1736875834613,-500.0,0.00021917,3]
[348929002,1736875834623,-203.43522724,0.00021917,3]
[348929004,1736875834633,-500.0,0.00021917,3]
[348929006,1736875834642,-500.0,0.00021917,3]
[348929008,1736875834652,-500.0,0.00021917,3]
[348929009,1736875834661,-500.0,0.00021917,3]
[348929010,1736875834670,-500.0,0.00021917,3]
[348929011,1736875834679,-500.0,0.00021917,3]
[348929012,1736875834689,-500.0,0.00021917,3]
[348929013,1736875834700,-500.0,0.00021917,3]
[348929014,1736875834709,-500.0,0.00021917,3]
[348929015,1736875834718,-500.0,0.00021917,3]
[348929016,1736875834728,-500.0,0.00021917,3]
[348929017,1736875834738,-500.0,0.00021917,3]
[348929018,1736875834748,-500.0,0.00021917,3]
[348929019,1736875834757,-500.0,0.00021917,3]
[348929020,1736875834767,-500.0,0.00021917,3]
[348929021,1736875834776,-500.0,0.00021917,3]
[348929022,1736875834786,-500.0,0.00021917,3]
[348929023,1736875834795,-500.0,0.00021917,3]
[348929024,1736875834804,-500.0,0.00021917,3]
[348929025,1736875834813,-500.0,0.00021917,3]
[348929026,1736875834823,-500.0,0.00021917,3]
[348929027,1736875834833,-500.0,0.00021917,3]
[348929028,1736875834842,-500.0,0.00021917,3]
[348929029,1736875834851,-500.0,0.00021917,3]
[348929030,1736875834860,-500.0,0.00021917,3]
[348929031,1736875834869,-500.0,0.00021917,3]
[348929032,1736875834879,-500.0,0.00021917,3]
[348929033,1736875834888,-500.0,0.00021917,3]
[348929034,1736875834898,-500.0,0.00021917,3]
[348929035,1736875834908,-500.0,0.00021917,3]
[348929036,1736875834918,-500.0,0.00021917,3]
[348929037,1736875834927,-500.0,0.00021917,3]
[348929038,1736875834936,-500.0,0.00021917,3]
[348929039,1736875834947,-500.0,0.00021917,3]
[348929040,1736875834956,-500.0,0.00021917,3]
[348929041,1736875834966,-500.0,0.00021917,3]
[348929042,1736875834975,-500.0,0.00021917,3]
[348929043,1736875834984,-500.0,0.00021917,3]
[348929044,1736875834994,-501.67571371,0.00021917,3]
[348929045,1736875835003,-500.0,0.00021917,3]
[348929046,1736875835013,-500.0,0.00021917,3]
[348929047,1736875835023,-500.0,0.00021917,3]
[348929048,1736875835033,-500.0,0.00021917,3]
[348929049,1736875835042,-500.0,0.00021917,3]
[348929050,1736875835053,-500.0,0.00021917,3]
[348929051,1736875835064,-500.0,0.00021917,3]
[348929052,1736875835073,-500.0,0.00021917,3]
[348929053,1736875835083,-500.0,0.00021917,3]
[348929054,1736875835092,-500.0,0.00021917,3]
[348929055,1736875835102,-500.0,0.00021917,3]
[348929056,1736875835111,-500.0,0.00021917,3]
[348929057,1736875835120,-500.0,0.00021917,3]
[348929058,1736875835130,-500.0,0.00021917,3]
[348929059,1736875835139,-500.0,0.00021917,3]
[348929060,1736875835148,-500.0,0.00021917,3]
[348929062,1736875835158,-500.0,0.00021917,3]
[348929074,1736875835310,-500.0,0.00021917,3]
[348929075,1736875835320,-216.86361084,0.00021917,3]
[348929076,1736875835330,-500.0,0.00021917,3]
[348929077,1736875835340,-500.0,0.00021917,3]
[348929078,1736875835349,-520.4811972,0.00021917,3]
[348929079,1736875835359,-500.0,0.00021917,3]
[348929080,1736875835368,-500.0,0.00021917,3]
[348929081,1736875835378,-500.0,0.00021917,3]
[348929082,1736875835387,-500.0,0.00021917,3]
[348929083,1736875835397,-500.0,0.00021917,3]
[348929084,1736875835407,-500.0,0.00021917,3]
[348929085,1736875835417,-500.0,0.00021917,3]
[348929086,1736875835426,-500.0,0.00021917,3]
[348929087,1736875835436,-500.0,0.00021917,3]
[348929088,1736875835446,-500.0,0.00021917,3]
[348929089,1736875835461,-500.0,0.00021917,3]
[348929090,1736875835471,-500.0,0.00021917,3]
[348929091,1736875835481,-500.0,0.00021917,3]
[348929092,1736875835491,-500.0,0.00021917,3]
[348929093,1736875835500,-500.0,0.00021917,3]
[348929094,1736875835509,-500.0,0.00021917,3]
[348929095,1736875835519,-500.0,0.00021917,3]
[348929096,1736875835528,-500.0,0.00021917,3]
[348929097,1736875835537,-535.14,0.00021917,3]
[348929098,1736875835547,-500.0,0.00021917,3]
[348929099,1736875835557,-500.0,0.00021917,3]
[348929100,1736875835566,-500.0,0.00021917,3]
[348929101,1736875835575,-500.0,0.00021917,3]
[348929102,1736875835585,-500.0,0.00021917,3]
[348929103,1736875835594,-500.0,0.00021917,3]
[348929104,1736875835604,-502.56255742,0.00021917,3]
[348929105,1736875835613,-500.0,0.00021917,3]
[348929106,1736875835623,-500.0,0.00021917,3]
[348929107,1736875835633,-500.0,0.00021917,3]
[348929108,1736875835643,-500.0,0.00021917,3]
[348929109,1736875835652,-500.0,0.00021917,3]
[348929110,1736875835662,-500.0,0.00021917,3]
[348929111,1736875835671,-500.0,0.00021917,3]
[348929112,1736875835681,-500.0,0.00021917,3]
[348929113,1736875835690,-500.0,0.00021917,3]
[348929114,1736875835699,-508.69561786,0.00021917,3]
[348929115,1736875835709,-503.72501014,0.00021917,3]
[348929116,1736875835719,-500.0,0.00021917,3]